bitfinex/quotes_SOLUSD_20250317
["timestamp","ask_amount","ask_price","bid_price","bid_amount"]
[1742222055949,1.6508,127.68,127.65,0.56864628]
[1742222056174,15.31397699,127.67,127.64,18.64964886]
[1742222056353,15.31397699,127.65,127.63,81.36846987]
[1742222056549,15.31397699,127.65,127.63,80.79982359]
[1742222057076,15.31397699,127.64,127.58,88.25982359]
[1742222057281,15.31397699,127.62,127.59,18.79181043]
[1742222057772,20.0,127.64,127.6,0.14216157]
[1742222058081,15.31397699,127.65,127.61,0.28432314]
[1742222058576,15.31397699,127.64,127.61,0.28432314]
[1742222058776,15.31397699,127.63,127.61,80.79982359]
[1742222059657,15.31397699,127.62,127.61,80.79982359]
[1742222061487,23.14967699,127.62,127.61,80.79982359]
[1742222061687,23.14967699,127.62,127.58,153.29181043]
[1742222061688,23.14967699,127.62,127.58,18.79181043]
[1742222061978,15.31397699,127.59,127.57,18.933972]
[1742222063176,15.31397699,127.59,127.56,81.08414673]
[1742222063391,15.31397699,127.58,127.56,88.52414673]
[1742222063587,15.31397699,127.58,127.56,7.44]
[1742222063760,15.31397699,127.57,127.54,80.79982359]
[1742222063956,15.31397699,127.55,127.52,80.79982359]
[1742222064165,15.31397699,127.54,127.52,81.08414673]
[1742222064365,15.31397699,127.55,127.53,0.28432314]
[1742222064672,15.31397699,127.55,127.52,80.79982359]
[1742222065056,24.47859745,127.54,127.52,80.79982359]
[1742222065258,14.153,127.58,127.52,80.79982359]
[1742222065259,24.47859745,127.53,127.52,80.79982359]
[1742222065455,24.47859745,127.54,127.52,80.79982359]
[1742222065768,24.47859745,127.53,127.51,18.933972]
[1742222066384,24.47859745,127.54,127.51,18.933972]
[1742222066562,20.0,127.55,127.52,0.14216157]
[1742222066763,44.47859745,127.55,127.52,0.28432314]
[1742222067174,24.47859745,127.55,127.52,0.28432314]
[1742222067364,24.47859745,127.56,127.52,0.28432314]
[1742222067560,24.47859745,127.56,127.52,81.08414673]
[1742222067766,1.627,127.6,127.54,19.21829514]
[1742222067969,24.47859745,127.57,127.55,7.42]
[1742222068176,24.47859745,127.59,127.56,19.21829514]
[1742222069355,24.47859745,127.59,127.56,0.56864628]
[1742222069561,1.627,127.6,127.55,7.42]
[1742222069562,24.47859745,127.57,127.55,7.42]
[1742222069763,24.47859745,127.59,127.55,15.2594]
[1742222069963,26.10559745,127.6,127.56,19.21829514]
[1742222070279,44.47859745,127.61,127.56,43.69689259]
[1742222070576,26.04839745,127.63,127.59,0.14216157]
[1742222070779,26.04839745,127.63,127.59,26.63829514]
[1742222070979,24.47859745,127.62,127.59,7.42]
[1742222071163,24.47859745,127.61,127.59,7.42]
[1742222071357,24.47859745,127.61,127.58,80.79982359]
[1742222071767,21.5698,127.63,127.58,80.79982359]
[1742222071768,24.47859745,127.59,127.58,80.79982359]
[1742222071968,24.47859745,127.59,127.56,15.2593]
[1742222072163,44.47859745,127.59,127.56,7.42]
[1742222072381,24.47859745,127.58,127.56,7.42]
[1742222072773,30.95999745,127.61,127.54,80.79982359]
[1742222072774,24.47859745,127.57,127.54,80.79982359]
[1742222072971,24.47859745,127.56,127.55,0.063]
[1742222074384,20.1194,127.62,127.55,0.063]
[1742222074385,20.0,127.6,127.56,0.56864628]
[1742222074790,44.47859745,127.6,127.56,0.56864628]
[1742222074974,44.47859745,127.59,127.56,0.56864628]
[1742222075487,44.47859745,127.59,127.55,80.86282359]
[1742222075796,24.47859745,127.58,127.55,80.86282359]
[1742222075976,24.47859745,127.58,127.55,88.70282359]
[1742222077597,24.47859745,127.57,127.55,80.86282359]
[1742222077884,24.47859745,127.58,127.55,0.063]
[1742222078271,24.47859745,127.56,127.55,0.063]
[1742222079876,32.31799745,127.56,127.55,0.063]
[1742222081393,39.69799745,127.56,127.55,0.063]
[1742222082281,45.85383377,127.56,127.55,0.063]
[1742222083310,20.0,127.53,127.49,0.063]
[1742222083589,24.47859745,127.5,127.49,0.063]
[1742222084495,20.0,127.5,127.49,0.063]
[1742222086688,15.30831584,127.51,127.49,0.063]
[1742222086872,15.30831584,127.5,127.49,0.063]
[1742222087076,15.30831584,127.5,127.44,0.063]
[1742222087279,15.30831584,127.45,127.44,0.063]
[1742222087887,15.30831584,127.46,127.44,0.063]
[1742222088088,15.30831584,127.47,127.44,0.063]
[1742222088800,15.30831584,127.45,127.44,0.063]
[1742222089298,24.51599092,127.45,127.44,0.063]
[1742222090091,32.36219092,127.45,127.44,0.063]
[1742222090483,24.51599092,127.45,127.44,0.063]
[1742222090885,20.0,127.48,127.44,0.063]
[1742222091075,24.51599092,127.46,127.44,0.063]
[1742222091278,24.51599092,127.45,127.44,0.063]
[1742222091478,24.51599092,127.46,127.44,0.063]
[1742222091881,7.8431,127.5,127.44,0.063]
[1742222091882,24.51599092,127.45,127.44,0.063]
[1742222093199,20.0,127.42,127.37,88.20282359]
[1742222093397,24.51599092,127.4,127.37,88.20282359]
[1742222093785,24.51599092,127.38,127.37,0.063]
[1742222094699,24.51599092,127.39,127.37,0.063]
[1742222095286,24.51599092,127.38,127.37,0.063]
[1742222096294,32.36649092,127.38,127.37,0.063]
[1742222099803,20.0,127.38,127.37,0.063]
[1742222100202,15.1882,127.42,127.37,0.063]
[1742222100203,24.51599092,127.41,127.37,0.063]
[1742222100501,24.51599092,127.4,127.37,0.063]
[1742222100709,24.51599092,127.41,127.37,0.063]
[1742222100908,24.51599092,127.4,127.37,0.063]
[1742222101291,44.51599092,127.4,127.37,0.063]
[1742222101989,20.0,127.4,127.37,0.063]
[1742222102191,20.0,127.4,127.37,0.63164628]
[1742222102384,20.0,127.41,127.38,24.51599092]
[1742222102597,24.51599092,127.43,127.38,38.37099092]
[1742222103204,24.51599092,127.43,127.39,0.56864628]
[1742222103381,7.36,127.46,127.39,25.0846372]
[1742222103588,24.51599092,127.44,127.39,25.0846372]
[1742222103790,24.51599092,127.45,127.4,32.36519092]
[1742222104093,24.51599092,127.44,127.4,7.8492]
[1742222104803,44.51599092,127.43,127.4,7.8492]
[1742222104991,44.51599092,127.43,127.39,8.41824628]
[1742222105188,24.51599092,127.42,127.38,102.50522359]
[1742222105399,24.51599092,127.42,127.38,21.7054]
[1742222105597,20.0,127.43,127.39,43.59212449]
[1742222105806,20.0,127.43,127.4,0.14216157]
[1742222106002,20.0,127.43,127.41,7.8486]
[1742222106401,20.0,127.46,127.42,24.51599092]
[1742222106606,24.51599092,127.45,127.41,7.8486]
[1742222106912,24.51599092,127.44,127.41,7.8486]
[1742222107413,20.0,127.46,127.42,0.56864628]
[1742222107608,44.51599092,127.46,127.42,0.56864628]
[1742222107918,24.51599092,127.44,127.41,7.8486]
[1742222108120,24.51599092,127.45,127.41,7.8486]
[1742222108287,24.51599092,127.42,127.39,80.79982359]
[1742222108492,24.51599092,127.41,127.38,13.855]
[1742222109022,20.0,127.42,127.38,21.7054]
[1742222109221,44.51599092,127.42,127.38,21.7054]
[1742222109527,24.51599092,127.44,127.39,25.0846372]
[1742222109694,24.51599092,127.43,127.39,19.21829514]
[1742222110098,44.51599092,127.44,127.4,7.8492]
[1742222110295,24.51599092,127.43,127.39,8.27628471]
[1742222110596,24.51599092,127.42,127.38,21.7052]
[1742222110802,20.0,127.42,127.41,0.063]
[1742222111205,20.0,127.44,127.41,0.063]
[1742222111402,24.51599092,127.43,127.41,0.063]
[1742222112316,24.51599092,127.42,127.41,0.063]
[1742222113416,3.97577512,127.47,127.41,31.89899092]
[1742222113714,20.0,127.44,127.42,0.56864628]
[1742222114102,20.0,127.44,127.43,7.8474]
[1742222114300,20.0,127.44,127.42,7.8477]
[1742222115114,24.51599092,127.47,127.42,51.98379092]
[1742222115698,44.51599092,127.46,127.42,27.4678]
[1742222116195,20.0,127.47,127.43,0.56864628]
[1742222116398,1.6191,127.5,127.43,25.0846372]
[1742222116595,24.51599092,127.48,127.43,25.0846372]
[1742222117204,24.51599092,127.49,127.44,43.16563978]
[1742222117506,24.51599092,127.49,127.45,7.32]
[1742222117905,0.03,127.5,127.45,31.83599092]
[1742222118111,20.0,127.49,127.45,31.83599092]
[1742222118319,0.03,127.5,127.46,32.36149092]
[1742222118537,20.03,127.5,127.46,32.36149092]
[1742222119201,20.03,127.5,127.47,19.21829514]
[1742222119407,20.03,127.5,127.48,30.90559092]
[1742222119606,0.03,127.5,127.48,30.90559092]
[1742222120439,0.03,127.5,127.48,6.3896]
[1742222120733,24.54599092,127.5,127.47,100.01811873]
[1742222121030,24.51599092,127.49,127.47,80.79982359]
[1742222121238,20.03,127.5,127.47,80.79982359]
[1742222121410,0.03,127.5,127.48,19.21829514]
[1742222121814,0.03,127.5,127.48,43.73428606]
[1742222122010,0.03,127.5,127.48,51.05428606]
[1742222122216,0.03,127.5,127.49,43.44996292]
[1742222122418,0.03,127.5,127.49,51.57798606]
[1742222123918,0.03,127.5,127.49,132.37780965]
[1742222124112,0.03,127.5,127.49,100.01811873]
[1742222124517,0.03,127.5,127.49,107.86181873]
[1742222125121,0.03,127.5,127.49,132.37780965]
[1742222126326,24.51599092,127.57,127.5,19.21829514]
[1742222126518,24.51599092,127.57,127.51,24.51599092]
[1742222126719,7.8678,127.59,127.53,19.21829514]
[1742222127019,24.51599092,127.57,127.53,19.21829514]
[1742222127214,44.51599092,127.56,127.53,19.21829514]
[1742222128015,20.0,127.56,127.53,19.21829514]
[1742222128220,24.51599092,127.57,127.53,19.21829514]
[1742222128716,20.0,127.55,127.52,7.34]
[1742222128923,44.51599092,127.55,127.52,7.34]
[1742222129415,20.0,127.55,127.52,7.34]
[1742222129610,20.0,127.55,127.53,19.21829514]
[1742222129928,20.0,127.56,127.53,27.05919514]
[1742222130432,20.0,127.56,127.53,19.21829514]
[1742222130626,44.51599092,127.56,127.52,7.34]
[1742222130825,24.51599092,127.55,127.52,7.34]
[1742222131414,44.51599092,127.56,127.52,15.1818]
[1742222132922,52.35549092,127.56,127.52,15.1818]
[1742222133320,24.51599092,127.55,127.52,15.1818]
[1742222133523,27.8395,127.56,127.51,33.45723357]
[1742222133735,24.51599092,127.55,127.52,19.21829514]
[1742222134038,19.51599092,127.56,127.53,7.8412]
[1742222134738,20.0,127.55,127.53,26.49084886]
[1742222135847,0.03,127.54,127.51,6.5387]
[1742222136010,0.03,127.54,127.51,33.03054886]
[1742222136641,15.32398023,127.54,127.51,33.03054886]
[1742222136832,0.03,127.54,127.51,33.03054886]
[1742222137414,0.03,127.54,127.52,0.14216157]
[1742222137638,0.03,127.54,127.52,19.21829514]
[1742222137837,0.03,127.54,127.52,34.51227537]
[1742222138043,0.03,127.54,127.53,8.40984628]
[1742222138539,0.03,127.54,127.52,18.79181043]
[1742222138933,0.03,127.54,127.52,26.63351043]
[1742222139519,20.03,127.54,127.52,26.63351043]
[1742222139841,0.03,127.54,127.53,0.42648471]
[1742222140043,0.03,127.54,127.53,8.40984628]
[1742222141748,0.03,127.54,127.53,104.5036501]
[1742222142051,0.03,127.54,127.53,130.45329896]
[1742222143350,0.03,127.59,127.56,18.79181043]
[1742222143552,0.03,127.59,127.58,34.51227537]
[1742222143852,0.0001,127.59,127.58,116.87897789]
[1742222144055,0.0001,127.59,127.58,124.71717789]
[1742222144761,0.03,127.62,127.59,19.21829514]
[1742222144929,0.0001,127.62,127.61,49.8062556]
[1742222145129,0.0001,127.62,127.61,267.79050939]
[1742222146130,0.0001,127.62,127.61,306.65250005]
[1742222146661,0.0001,127.62,127.61,282.23230939]
[1742222147352,0.0001,127.62,127.61,306.65250005]
[1742222148733,0.0001,127.62,127.61,282.23230939]
[1742222150032,0.03,127.68,127.64,19.21829514]
[1742222150237,0.03,127.68,127.66,19.21829514]
[1742222150436,0.03,127.68,127.65,7.3]
[1742222150437,24.45019066,127.68,127.65,7.3]
[1742222150646,24.42019066,127.67,127.65,7.3]
[1742222151150,24.42019066,127.66,127.62,18.933972]
[1742222151449,24.42019066,127.65,127.61,88.09982359]
[1742222151957,24.42019066,127.64,127.61,88.09982359]
[1742222152124,1.5138,127.67,127.61,88.09982359]
[1742222152125,24.42019066,127.65,127.61,88.09982359]
[1742222152742,24.42019066,127.66,127.61,95.93602359]
[1742222153045,1.5138,127.67,127.62,43.6384858]
[1742222153257,20.0,127.65,127.63,24.42019066]
[1742222153433,24.42019066,127.67,127.62,124.43830939]
[1742222154257,32.25289066,127.67,127.62,124.43830939]
[1742222154442,24.42019066,127.66,127.62,100.01811873]
[1742222154753,24.42019066,127.65,127.62,100.01811873]
[1742222155151,24.42019066,127.65,127.62,80.79982359]
[1742222155454,20.0,127.63,127.62,80.79982359]
[1742222156051,20.0,127.63,127.62,88.63552359]
[1742222156637,20.03,127.68,127.63,0.56864628]
[1742222156842,20.0,127.67,127.63,24.98883694]
[1742222157347,0.03,127.68,127.63,24.98883694]
[1742222157552,0.03,127.68,127.65,24.98883694]
[1742222157742,24.45019066,127.68,127.64,7.3]
[1742222158246,20.03,127.68,127.65,24.98883694]
[1742222158455,0.03,127.68,127.65,8.40194628]
[1742222159254,24.45019066,127.68,127.65,0.28432314]
[1742222159550,0.03,127.68,127.65,0.56864628]
[1742222160253,20.03,127.68,127.65,24.98883694]
[1742222160456,20.03,127.68,127.66,24.42019066]
[1742222160633,20.03,127.68,127.67,7.8326]
[1742222161035,20.03,127.68,127.66,7.833]
[1742222161237,0.03,127.68,127.67,0.56864628]
[1742222161531,0.03,127.68,127.67,24.98883694]
[1742222161735,0.03,127.68,127.67,0.56864628]
[1742222162462,0.03,127.68,127.67,124.43830939]
[1742222162664,0.0001,127.68,127.67,294.39070418]
[1742222162835,0.0001,127.68,127.67,251.34441873]
[1742222163035,0.0001,127.68,127.67,249.71071873]
[1742222163654,0.0001,127.68,127.67,231.06106987]
[1742222163849,0.0001,127.68,127.67,96.56106987]
[1742222164692,0.0001,127.68,127.67,88.15982359]
[1742222165561,20.0001,127.68,127.67,88.15982359]
[1742222166255,20.0001,127.68,127.67,7.36]
[1742222166866,20.0001,127.68,127.65,81.08414673]
[1742222167068,20.0001,127.68,127.65,88.91794673]
[1742222167070,0.0001,127.68,127.65,88.91794673]
[1742222167569,20.0001,127.68,127.65,88.91794673]
[1742222168289,24.42019066,127.67,127.63,80.79982359]
[1742222168452,44.42019066,127.65,127.61,80.94198516]
[1742222168651,24.42019066,127.64,127.6,0.28432314]
[1742222168889,24.42019066,127.64,127.6,8.12112314]
[1742222169086,44.42019066,127.65,127.6,8.12112314]
[1742222169391,24.42019066,127.64,127.61,0.14216157]
[1742222169557,44.42019066,127.65,127.61,0.14216157]
[1742222169756,44.42019066,127.65,127.61,0.42648471]
[1742222170685,20.0,127.65,127.62,7.8357]
[1742222170887,20.0,127.65,127.63,0.56864628]
[1742222171502,20.0,127.65,127.62,88.63552359]
[1742222171997,20.0,127.66,127.62,88.63552359]
[1742222172297,44.42019066,127.66,127.62,88.63552359]
[1742222173171,44.42019066,127.66,127.63,0.063]
[1742222173367,20.0,127.66,127.63,0.063]
[1742222173601,24.42019066,127.67,127.63,0.063]
[1742222174097,1.5178,127.68,127.63,124.50130939]
[1742222174316,20.0,127.67,127.63,81.43146987]
[1742222174604,44.42019066,127.67,127.63,81.43146987]
[1742222174774,44.42019066,127.67,127.64,7.8345]
[1742222175095,20.0001,127.68,127.64,7.8345]
[1742222175408,0.0001,127.68,127.65,0.56864628]
[1742222176084,44.42019066,127.67,127.64,88.21982359]
[1742222176284,24.42019066,127.66,127.64,88.21982359]
[1742222176782,24.42019066,127.67,127.64,96.05392359]
[1742222176981,20.0,127.66,127.64,96.05392359]
[1742222177184,24.42019066,127.67,127.64,96.05392359]
[1742222177798,24.42029066,127.68,127.64,96.05392359]
[1742222178297,24.42019066,127.67,127.64,96.05392359]
[1742222178478,20.0001,127.68,127.64,96.05392359]
[1742222178682,24.42019066,127.66,127.64,88.21982359]
[1742222178997,24.42019066,127.66,127.64,80.79982359]
[1742222179201,24.42019066,127.66,127.63,8.32428471]
[1742222179202,24.42019066,127.65,127.63,0.063]
[1742222179405,24.42019066,127.64,127.63,0.063]
[1742222179774,24.42019066,127.65,127.63,0.063]
[1742222180581,24.42019066,127.66,127.63,7.8981]
[1742222180783,25.97819066,127.67,127.63,0.063]
[1742222180981,44.42019066,127.64,127.63,0.063]
[1742222181198,63.06983952,127.64,127.63,0.063]
[1742222181513,20.0,127.6,127.59,0.063]
[1742222181672,26.07189066,127.6,127.59,0.063]
[1742222183009,33.90879066,127.6,127.59,0.063]
[1742222185106,20.0,127.57,127.52,0.063]
[1742222185311,24.42019066,127.54,127.52,0.063]
[1742222186110,24.42019066,127.55,127.52,7.9048]
[1742222186407,51.80019066,127.57,127.52,7.9048]
[1742222186905,24.42019066,127.56,127.52,7.9048]
[1742222187296,51.80019066,127.57,127.52,7.9048]
[1742222187603,24.42019066,127.56,127.52,7.9048]
[1742222187914,24.42019066,127.54,127.52,0.063]
[1742222188095,24.42019066,127.53,127.52,0.063]
[1742222188412,24.42019066,127.54,127.52,0.063]
[1742222189007,24.42019066,127.55,127.52,0.063]
[1742222189304,24.42019066,127.56,127.52,0.063]
[1742222190412,44.42019066,127.57,127.52,25.05183694]
[1742222190797,44.42019066,127.57,127.52,0.63164628]
[1742222191002,44.42019066,127.57,127.53,7.8412]
[1742222192081,24.42019066,127.56,127.52,0.063]
[1742222192281,24.42019066,127.54,127.52,0.063]
[1742222192506,7.8394,127.56,127.52,0.063]
[1742222192507,24.42019066,127.53,127.52,0.063]
[1742222192921,44.42019066,127.54,127.52,7.9048]
[1742222193109,44.42019066,127.54,127.52,0.063]
[1742222194092,24.42019066,127.53,127.52,0.063]
[1742222195087,15.30668677,127.53,127.52,0.063]
[1742222195720,20.0,127.52,127.51,0.063]
[1742222196021,35.30668677,127.52,127.51,0.063]
[1742222196398,43.14858677,127.52,127.51,0.063]
[1742222197118,59.72641462,127.52,127.51,0.063]
[1742222197819,0.56864628,127.51,127.46,0.063]
[1742222198024,44.50451462,127.47,127.46,0.063]
[1742222198211,52.34941462,127.47,127.46,0.063]
[1742222198806,20.0,127.47,127.46,0.063]
[1742222199098,24.50451462,127.47,127.46,0.063]
[1742222199398,24.50451462,127.48,127.46,0.063]
[1742222199820,7.8433,127.5,127.46,0.063]
[1742222200126,44.50451462,127.47,127.46,0.063]
[1742222200996,52.34941462,127.47,127.46,0.063]
[1742222201204,102.8835781,127.47,127.46,0.063]
[1742222201408,105.00372438,127.47,127.46,0.063]
[1742222201720,20.0,127.43,127.42,0.063]
[1742222201917,44.50451462,127.43,127.42,0.063]
[1742222203115,20.0,127.43,127.42,0.063]
[1742222203312,44.50451462,127.43,127.42,0.063]
[1742222204130,20.0,127.43,127.42,0.063]
[1742222204414,24.50451462,127.44,127.42,0.063]
[1742222204625,24.50451462,127.45,127.42,0.063]
[1742222205224,20.0,127.43,127.42,0.063]
[1742222205726,24.50451462,127.45,127.42,0.063]
[1742222205937,21.8065,127.5,127.42,0.063]
[1742222206118,24.50451462,127.47,127.42,0.063]
[1742222206422,24.50451462,127.46,127.42,7.911]
[1742222207832,24.50451462,127.46,127.42,0.063]
[1742222208006,24.50451462,127.43,127.42,0.063]
[1742222209809,51.00156348,127.43,127.42,0.063]
[1742222210136,51.00156348,127.43,127.39,0.063]
[1742222210137,20.0,127.4,127.39,0.063]
[1742222210431,76.36902924,127.4,127.39,0.063]
[1742222211710,95.0186781,127.4,127.39,0.063]
[1742222211912,102.8678781,127.4,127.39,0.063]
[1742222212912,18.64964886,127.39,127.37,0.063]
[1742222213111,24.50451462,127.38,127.37,0.063]
[1742222214038,20.0,127.38,127.37,0.063]
[1742222214334,44.50451462,127.38,127.37,0.063]
[1742222215132,7.8474,127.43,127.37,0.063]
[1742222215316,24.50451462,127.4,127.37,0.063]
[1742222215635,24.50451462,127.39,127.37,0.063]
[1742222216128,44.50451462,127.4,127.37,0.063]
[1742222217127,20.0,127.4,127.37,0.063]
[1742222217445,24.50451462,127.41,127.37,0.063]
[1742222217446,9.4461,127.47,127.39,24.50451462]
[1742222217735,24.50451462,127.44,127.39,24.50451462]
[1742222218533,24.50451462,127.45,127.4,7.8492]
[1742222218724,24.50451462,127.45,127.41,7.36]
[1742222218931,24.50451462,127.44,127.41,7.36]
[1742222219428,24.50451462,127.42,127.41,7.36]
[1742222219749,24.50451462,127.42,127.4,7.8492]
[1742222220136,24.50451462,127.43,127.4,7.8492]
[1742222220317,26.02964886,127.48,127.4,7.8492]
[1742222220318,20.0,127.45,127.4,51.97691462]
[1742222220512,20.0,127.45,127.42,24.50451462]
[1742222220712,0.063,127.46,127.43,7.38]
[1742222220933,24.56751462,127.46,127.43,7.38]
[1742222221116,0.063,127.46,127.43,7.38]
[1742222221317,24.50451462,127.45,127.43,7.38]
[1742222221616,24.50451462,127.44,127.41,94.5482]
[1742222222121,24.50451462,127.42,127.41,80.8]
[1742222222322,24.50451462,127.42,127.39,7.8496]
[1742222222509,24.50451462,127.42,127.38,13.78276157]
[1742222222510,24.50451462,127.41,127.38,21.4908]
[1742222223124,24.50451462,127.41,127.38,13.6406]
[1742222223436,24.50451462,127.4,127.38,7.38]
[1742222223832,44.50451462,127.41,127.38,15.2305]
[1742222224015,20.0,127.41,127.38,15.2305]
[1742222224538,24.50451462,127.4,127.38,7.38]
[1742222225035,24.50451462,127.4,127.37,88.7138]
[1742222225235,44.50451462,127.41,127.37,88.7138]
[1742222225741,24.50451462,127.4,127.37,80.863]
[1742222226031,24.50451462,127.4,127.37,88.7139]
[1742222226334,20.0,127.41,127.37,108.3417]
[1742222226637,20.0,127.42,127.39,7.8499]
[1742222227342,24.50451462,127.43,127.39,7.8499]
[1742222227343,20.0,127.43,127.39,39.71441462]
[1742222227645,20.0,127.43,127.4,0.56864628]
[1742222227825,24.56751462,127.46,127.4,25.0731609]
[1742222228027,24.56751462,127.46,127.41,24.50451462]
[1742222228225,24.56751462,127.46,127.4,25.0731609]
[1742222228426,0.063,127.46,127.43,32.35191462]
[1742222228632,0.063,127.46,127.43,15.2074]
[1742222228834,0.063,127.46,127.43,39.71191462]
[1742222229345,0.063,127.46,127.43,15.2074]
[1742222229642,24.50451462,127.45,127.43,7.36]
[1742222229839,0.063,127.46,127.43,7.36]
[1742222230034,0.063,127.46,127.43,31.86451462]
[1742222230238,0.063,127.46,127.45,24.50451462]
[1742222230449,0.063,127.46,127.45,32.35071462]
[1742222231238,0.063,127.46,127.45,7.8462]
[1742222231819,0.0001,127.46,127.45,268.51600976]
[1742222232044,0.0001,127.46,127.45,274.72240976]
[1742222232618,0.0001,127.46,127.45,231.56824628]
[1742222232920,0.0001,127.46,127.45,238.94824628]
[1742222233130,0.0001,127.46,127.45,21.4326]
[1742222233553,0.0001,127.46,127.45,13.5864]
[1742222233854,0.0001,127.46,127.45,7.38]
[1742222235344,20.0,127.45,127.43,80.8]
[1742222235554,44.50451462,127.45,127.42,7.38]
[1742222236549,20.0,127.45,127.42,15.2279]
[1742222236847,0.0001,127.46,127.42,39.73241462]
[1742222237215,0.0001,127.46,127.42,15.2279]
[1742222237415,0.0001,127.46,127.42,39.73241462]
[1742222238149,0.0001,127.46,127.43,0.56864628]
[1742222238828,0.0001,127.46,127.43,8.41564628]
[1742222239232,24.50461462,127.46,127.43,7.847]
[1742222239435,0.0001,127.46,127.43,7.847]
[1742222241150,24.50461462,127.46,127.42,15.2278]
[1742222241463,24.50451462,127.45,127.42,15.2278]
[1742222241756,0.0001,127.46,127.42,15.2278]
[1742222242446,24.50461462,127.46,127.42,15.2278]
[1742222242622,24.50451462,127.45,127.42,15.2278]
[1742222243437,20.0001,127.46,127.42,15.2278]
[1742222243747,20.0001,127.46,127.42,15.2578]
[1742222243947,44.50461462,127.46,127.42,15.2578]
[1742222244929,20.0001,127.46,127.42,15.2578]
[1742222245244,52.35031462,127.46,127.42,15.2578]
[1742222245457,24.50451462,127.45,127.42,0.03]
[1742222245962,24.50451462,127.45,127.42,7.8778]
[1742222246257,24.50451462,127.44,127.42,0.03]
[1742222246430,44.50451462,127.43,127.42,0.03]
[1742222247538,20.0,127.4,127.39,0.03]
[1742222247737,44.50451462,127.4,127.39,0.03]
[1742222248233,52.35371462,127.4,127.39,0.03]
[1742222248429,44.50451462,127.4,127.39,0.03]
[1742222248855,20.0,127.4,127.39,0.03]
[1742222249154,24.50451462,127.4,127.39,0.03]
[1742222250543,44.50451462,127.4,127.39,0.03]
[1742222251056,20.0,127.4,127.39,0.03]
[1742222251725,1.5153,127.44,127.39,0.03]
[1742222251931,20.0,127.42,127.39,0.03]
[1742222252452,24.50451462,127.45,127.4,7.34]
[1742222252660,24.50451462,127.44,127.4,7.34]
[1742222252960,24.50451462,127.42,127.39,0.03]
[1742222253358,7.8457,127.46,127.39,0.03]
[1742222253534,20.0,127.43,127.39,24.53451462]
[1742222253859,24.50461462,127.46,127.4,24.50451462]
[1742222254053,44.50451462,127.44,127.41,7.36]
[1742222254239,44.50451462,127.44,127.41,15.2082]
[1742222254431,20.0,127.44,127.41,15.2082]
[1742222254944,24.50461462,127.46,127.42,0.28432314]
[1742222255252,0.063,127.43,127.41,15.2082]
[1742222255429,0.063,127.43,127.41,7.36]
[1742222255635,0.063,127.43,127.41,15.2086]
[1742222256650,0.063,127.43,127.41,7.36]
[1742222256848,0.063,127.43,127.41,15.2085]
[1742222260464,0.063,127.43,127.42,41.1273609]
[1742222261357,0.063,127.43,127.42,16.62284628]
[1742222261732,0.063,127.43,127.42,14.96584628]
[1742222263071,0.063,127.43,127.42,39.4703609]
[1742222263359,0.0001,127.43,127.42,138.92000976]
[1742222263942,0.0001,127.46,127.44,0.28432314]
[1742222264162,0.0001,127.46,127.45,50.79848662]
[1742222264461,0.0001,127.46,127.45,58.64468662]
[1742222265456,0.0001,127.46,127.45,58.92900976]
[1742222265650,0.0001,127.46,127.45,60.45000976]
[1742222266770,0.0001,127.46,127.45,17.29584628]
[1742222267068,0.0001,127.46,127.45,15.49052314]
[1742222267241,0.0001,127.46,127.45,7.64432314]
[1742222267441,0.0001,127.46,127.45,8.13052314]
[1742222267636,0.0001,127.46,127.44,7.36]
[1742222267862,24.50461462,127.46,127.44,7.36]
[1742222268171,24.50461462,127.46,127.45,0.28432314]
[1742222268172,0.0001,127.46,127.45,0.28432314]
[1742222268754,0.0001,127.46,127.45,7.8462]
[1742222269061,0.0001,127.46,127.45,8.13052314]
[1742222269541,0.0001,127.46,127.44,7.36]